bitfinex/quotes_ETHUSD_20260110
["timestamp","ask_amount","ask_price","bid_price","bid_amount"]
[1768013279707,3.92445958,3085.4,3084.9,0.002]
[1768013281518,0.68337879,3085.4,3084.9,0.002]
[1768013281816,0.09692335,3085.3,3084.9,0.002]
[1768013283015,0.68337879,3085.4,3084.9,0.002]
[1768013283318,0.4179384,3085.3,3084.9,0.002]
[1768013284338,0.4179384,3085.3,3085.2,0.002]
[1768013284619,0.4179384,3085.3,3084.9,0.002]
[1768013284915,0.4179384,3085.3,3084.9,0.98627738]
[1768013292226,0.68437879,3085.4,3084.9,0.98627738]
[1768013292423,0.001,3085.4,3084.9,0.98627738]
[1768013295999,0.001,3085.4,3085.2,0.002]
[1768013296199,0.001,3085.4,3085.2,0.98627738]
[1768013313660,0.001,3085.7,3085.4,0.9269742]
[1768013321136,0.001,3085.7,3085.2,3.24327926]
[1768013321341,0.001,3085.7,3085.4,0.9269742]
[1768013322683,0.001,3085.7,3085.5,0.9269742]
[1768013330165,0.001,3085.7,3085.3,3.24113534]
[1768013330743,0.001,3085.4,3085.3,3.24113534]
[1768013330945,0.001,3085.7,3085.3,4.14488306]
[1768013331250,0.001,3085.7,3085.4,0.90374772]
[1768013332573,0.00080768,3086.0,3085.3,0.90374772]
[1768013335150,0.00080768,3086.0,3085.4,3.24107084]
[1768013336480,0.00080768,3086.0,3085.4,4.14481856]
[1768013337463,0.00080768,3086.0,3085.5,0.90374772]
[1768013337669,0.00080768,3086.0,3085.6,0.90374772]
[1768013341789,0.00080768,3086.0,3085.7,0.90374772]
[1768013344600,0.00080768,3086.0,3085.8,0.92725229]
[1768013344905,0.09692335,3086.6,3085.7,3.24073686]
[1768013345093,0.09692335,3086.6,3085.7,6.4814926]
[1768013345267,0.09692335,3086.6,3085.8,0.92725229]
[1768013345470,0.09692335,3086.6,3085.9,3.2405457]
[1768013345672,0.09692335,3086.6,3085.9,6.4810914]
[1768013346098,0.09692335,3086.6,3085.9,3.2405457]
[1768013346311,0.001,3086.8,3086.0,0.92725229]
[1768013346486,0.001,3086.8,3086.1,0.92725229]
[1768013348276,0.09792335,3086.8,3086.1,0.92725229]
[1768013351410,0.09692335,3086.7,3085.9,0.92725229]
[1768013352078,3.24060677,3086.8,3085.9,0.92725229]
[1768013352291,3.9238797,3086.8,3085.9,0.92725229]
[1768013354210,0.001,3086.4,3086.1,0.92725229]
[1768013362127,0.001,3086.4,3086.0,0.002]
[1768013362555,0.001,3086.4,3086.0,0.92925229]
[1768013362833,0.001,3086.4,3086.0,0.002]
[1768013363206,0.001,3086.4,3086.0,0.92925229]
[1768013367605,0.001,3086.1,3086.0,0.92925229]
[1768013398142,0.001,3086.1,3086.0,0.002]
[1768013464155,0.001,3086.4,3086.1,0.94165597]
[1768013464466,0.001,3086.8,3086.4,0.94165597]
[1768013467269,0.001,3086.8,3086.5,0.94165597]
[1768013470759,0.001,3086.8,3086.6,0.94165597]
[1768013488258,0.001,3086.8,3086.3,0.94165597]
[1768013488458,0.001,3086.8,3086.4,0.94165597]
[1768013493279,0.001,3086.8,3086.5,0.92240091]
[1768013510263,0.001,3086.8,3086.2,1.22198087]
[1768013510468,0.001,3086.8,3086.2,0.96698087]
[1768013517610,0.001,3086.5,3086.2,0.96698087]
[1768013520776,0.001,3086.5,3086.2,4.20719493]
[1768013521101,0.001,3086.5,3086.4,0.96698087]
[1768013532647,0.001,3086.8,3086.5,0.90268014]
[1768013561055,0.001,3086.8,3086.3,4.15570192]
[1768013561447,0.001,3086.8,3086.4,0.91559586]
[1768013563827,0.001,3086.5,3086.4,0.91559586]
[1768013564027,0.001,3086.8,3086.3,0.91559586]
[1768013576252,0.001,3086.5,3086.3,0.91559586]
[1768013624997,0.001,3086.5,3086.1,0.98534447]
[1768013625994,0.001,3086.5,3086.0,0.002]
[1768013626210,0.09792335,3086.5,3086.0,0.002]
[1768013633717,0.09792335,3086.5,3086.3,0.002]
[1768013640019,0.001,3086.5,3086.3,0.002]
[1768013654440,0.001,3086.5,3086.3,0.94364838]
[1768013654824,0.001,3086.5,3086.4,0.02191019]
[1768013655212,0.001,3086.5,3086.3,0.94364838]
[1768013666251,0.001,3086.5,3086.3,0.002]
[1768013693446,0.001,3086.5,3086.3,0.96801035]
[1768013713410,0.001,3086.5,3086.3,0.002]
[1768013716616,0.001,3086.5,3086.3,0.98589635]
[1768013720620,0.001,3086.5,3086.3,0.002]
[1768013730321,0.001,3086.5,3086.3,0.98589635]
[1768013774525,0.001,3086.5,3086.4,0.98801759]
[1768013780955,0.001,3086.5,3086.4,1.02041778]
[1768013781155,0.001,3086.5,3086.4,0.98801759]
[1768013783564,0.001,3086.8,3086.5,0.98801759]
[1768013791970,0.255,3087.3,3086.7,0.98801759]
[1768013792145,0.255,3087.3,3086.8,0.98801759]
[1768013792345,0.38461909,3087.5,3086.8,0.98801759]
[1768013792645,3.23969069,3087.6,3086.8,0.98801759]
[1768013794376,3.23887736,3087.5,3086.8,0.98801759]
[1768013794893,3.23965401,3087.6,3086.8,0.98801759]
[1768013800474,6.4784521,3087.6,3086.8,0.98801759]
[1768013801879,3.23965401,3087.6,3086.8,0.98801759]
[1768013805285,0.001,3087.1,3086.8,0.98801759]
[1768013805472,3.23926155,3087.9,3087.2,0.91336945]
[1768013806068,0.00085677,3087.6,3087.1,0.91251268]
[1768013807284,0.00085677,3087.6,3087.0,0.255]
[1768013807484,0.95204672,3087.6,3086.8,0.97193536]
[1768013807683,0.95204672,3087.6,3086.5,4.40822029]
[1768013807684,0.95118995,3087.4,3086.5,4.40822029]
[1768013807884,0.95118995,3087.4,3086.5,5.38024698]
[1768013808091,0.95118995,3087.4,3086.6,4.15231551]
[1768013809557,0.95118995,3087.4,3086.7,0.91251268]
[1768013817574,0.95118995,3087.4,3087.0,0.002]
[1768013819001,1.39577473,3087.4,3087.0,0.002]
[1768013820504,0.95118995,3087.4,3087.0,0.002]
[1768013821405,4.19021043,3087.4,3087.0,0.002]
[1768013821805,0.95118995,3087.4,3087.0,0.002]
[1768013825211,4.19017848,3087.4,3087.0,0.002]
[1768013825507,0.92417743,3087.3,3087.0,0.002]
[1768013825809,0.92417743,3087.1,3087.0,0.002]
[1768013826507,0.92417743,3087.1,3086.6,0.002]
[1768013829612,0.92517743,3087.1,3086.6,0.002]
[1768013831107,0.001,3087.1,3086.6,0.002]
[1768013833301,0.92517743,3087.1,3086.6,0.002]
[1768013833615,0.8143832,3087.0,3086.5,0.0008076]
[1768013835180,4.05381092,3087.0,3086.5,0.0008076]
[1768013841090,4.05381092,3087.0,3086.8,0.002]
[1768013850924,4.05381092,3087.0,3086.5,0.0028076]
[1768013851110,0.52339884,3086.9,3086.5,0.0028076]
[1768013853350,0.001,3086.7,3086.5,0.0028076]
[1768013870515,0.001,3086.7,3086.0,0.002]
[1768013870516,0.97017577,3086.7,3086.0,0.97970075]
[1768013871276,0.255,3086.6,3086.0,0.97970075]
[1768013874123,0.60456426,3086.6,3086.0,0.97970075]
[1768013876022,1.57374003,3086.6,3086.0,0.002]
[1768013876178,0.96917577,3086.5,3086.0,0.002]
[1768013876380,0.60456426,3086.6,3086.0,0.97970075]
[1768013876580,0.60456426,3086.6,3086.3,0.002]
[1768013876794,0.001,3086.4,3086.3,0.002]
[1768013879931,0.001,3086.4,3086.3,0.97970075]
[1768013880097,0.001,3086.7,3086.3,0.97970075]
[1768013882639,0.001,3086.7,3086.5,0.97770075]
[1768013901437,0.001,3086.7,3086.3,0.002]
[1768013901934,0.001,3086.7,3086.3,0.94863751]
[1768013910465,0.001,3086.7,3086.4,0.94663751]
[1768013910669,0.0008076,3086.9,3086.6,0.94663751]
[1768013912771,0.0008076,3086.9,3086.7,0.94663751]
[1768013915266,0.001,3087.1,3086.8,0.95751535]
[1768013917890,0.00085677,3087.6,3087.0,0.95751535]
[1768013918052,0.90096301,3087.6,3086.8,7.63587986]
[1768013920868,0.00085677,3087.6,3086.9,0.95751535]
[1768013923774,0.00085677,3087.6,3087.1,0.002]
[1768013923976,0.001,3087.3,3087.1,0.002]
[1768013925887,0.001,3087.3,3087.1,0.95951535]
[1768013940205,0.00085677,3087.6,3087.3,0.93218583]
[1768013941485,0.00085677,3087.6,3087.1,0.93418583]
[1768013942075,0.00085677,3087.6,3087.1,4.17345204]
[1768013942298,0.00085677,3087.6,3087.2,0.93218583]
[1768013948321,0.001,3087.3,3087.1,0.002]
[1768013950924,0.00085677,3087.6,3087.1,0.98061855]
[1768013952422,0.00085677,3087.6,3087.2,0.97861855]
[1768013958835,0.9539192,3087.6,3087.1,0.002]
[1768013959131,0.95191921,3087.6,3087.2,0.00085762]
[1768013959315,0.95306243,3087.8,3087.2,0.00085762]
[1768013959834,0.001,3087.3,3087.2,0.00085762]
[1768013979336,0.94950279,3087.9,3087.2,0.03324943]
[1768013983384,0.0008068,3087.9,3087.3,0.97374246]
[1768013984971,0.0008068,3087.9,3087.5,0.002]
[1768013985768,0.001,3087.6,3087.5,0.002]
[1768014038632,0.001,3087.6,3087.5,0.974381]
[1768014039930,0.91176734,3087.6,3086.6,3.414]
[1768014040129,0.91076734,3087.5,3086.5,3.4956408]
[1768014040335,0.91076734,3087.5,3086.5,0.28820683]
[1768014040640,0.91076734,3087.5,3086.6,3.23981079]
[1768014042026,0.91076734,3087.5,3086.7,0.972381]
[1768014044435,0.91076734,3087.5,3087.1,0.002]
[1768014044633,0.001,3087.3,3087.1,0.002]
[1768014060518,0.001,3087.3,3087.1,0.95440532]
[1768014067649,0.001,3087.3,3087.1,0.002]
[1768014075864,0.91327877,3087.3,3087.1,0.002]
[1768014083182,0.001,3087.3,3087.1,0.002]
[1768014083388,0.44171479,3087.3,3087.1,0.002]
[1768014083677,0.001,3087.3,3087.1,0.002]
[1768014101079,0.9813841,3087.3,3087.1,0.002]
[1768014101248,0.9813841,3087.3,3086.8,0.002]
[1768014101665,0.001,3087.3,3086.8,0.002]
[1768014101865,0.001,3087.3,3086.8,0.98162122]
[1768014112679,0.001,3087.3,3087.1,0.002]
[1768014112969,0.001,3087.3,3086.8,0.98162122]
[1768014112970,0.44852798,3087.3,3086.8,0.002]
[1768014113765,0.44852798,3087.3,3086.8,0.9675351]
[1768014115895,0.001,3087.3,3086.8,0.9675351]
[1768014117894,0.001,3087.3,3086.8,0.002]
[1768014118199,0.94935283,3087.3,3086.8,0.002]
[1768014120198,4.18847759,3087.3,3086.8,0.002]
[1768014120400,0.94835283,3087.2,3086.8,0.002]
[1768014120706,0.41884776,3087.1,3086.8,0.002]
[1768014121781,1.36720059,3087.1,3086.5,0.00080768]
[1768014122195,4.60654147,3087.1,3086.5,0.00080768]
[1768014122411,0.46065415,3087.0,3086.5,0.00080768]
[1768014123387,3.70004762,3087.0,3086.5,0.00080768]
[1768014123573,3.95504762,3087.0,3086.5,0.00080768]
[1768014123774,0.71565415,3087.0,3086.5,0.00080768]
[1768014124072,3.95508003,3087.0,3086.5,0.00080768]
[1768014124272,0.53222806,3086.9,3086.5,0.00080768]
[1768014124975,0.53222806,3086.9,3086.8,0.002]
[1768014125319,1.51518099,3086.9,3086.5,0.00080768]
[1768014126312,4.75467855,3086.9,3086.5,0.00080768]
[1768014126708,1.51518099,3086.9,3086.5,0.00080768]
[1768014126910,0.5009619,3086.8,3086.5,0.00080768]
[1768014127211,0.49896191,3086.8,3086.5,0.00080768]
[1768014127407,1.48191484,3086.8,3086.5,0.00080768]
[1768014127709,4.22256937,3086.8,3086.5,0.00080768]
[1768014128097,0.98295293,3086.8,3086.5,0.00080768]
[1768014130603,3.49447138,3087.0,3086.5,0.00080768]
[1768014131712,6.73393956,3087.0,3086.5,0.00080768]
[1768014131915,0.98376061,3086.9,3086.3,0.002]
[1768014132116,1.75472295,3086.8,3086.3,0.002]
[1768014132316,0.77177002,3086.8,3086.3,0.002]
[1768014133216,4.01140802,3086.8,3086.3,0.002]
[1768014133409,4.99436095,3086.8,3086.3,0.002]
[1768014133715,4.99236096,3086.8,3086.3,0.002]
[1768014133886,0.82326765,3086.7,3086.3,0.002]
[1768014134282,0.82326765,3086.7,3086.1,0.94737914]
[1768014134477,0.82326765,3086.7,3086.0,0.002]
[1768014135101,0.98295293,3086.6,3085.9,0.94937914]
[1768014135307,0.255,3086.5,3085.9,0.94937914]
[1768014135486,3.49494801,3086.5,3085.9,0.94937914]
[1768014135693,0.44779009,3086.4,3085.9,0.94937914]
[1768014137093,0.44779009,3086.4,3085.7,0.94737914]
[1768014137501,3.24012571,3086.3,3085.7,0.94737914]
[1768014138003,4.67077474,3086.4,3085.7,0.94737914]
[1768014138319,0.49257747,3086.3,3085.7,0.94737914]
[1768014139887,0.255,3086.5,3085.7,0.94737914]
[1768014142120,0.94737914,3086.7,3085.8,0.94737914]
[1768014142306,0.255,3086.6,3086.0,0.94737914]
[1768014148830,4.46699803,3086.8,3086.0,0.94737914]
[1768014149032,5.33601552,3086.8,3086.0,0.94737914]
[1768014149405,0.001,3086.3,3086.0,0.94737914]
[1768014168266,0.001,3086.3,3085.7,0.96577044]
[1768014172535,0.001,3086.0,3085.7,0.96577044]
[1768014180384,0.001,3086.0,3085.7,4.20650178]
[1768014180579,0.001,3086.0,3085.8,0.92185903]
[1768014180876,0.001,3086.3,3085.8,0.92185903]
[1768014181677,0.001,3086.3,3085.6,0.92466679]
[1768014181886,0.001,3086.3,3085.7,0.92185903]
[1768014183285,0.95784729,3086.3,3085.6,0.00280776]
[1768014184586,0.95784729,3086.3,3085.9,0.002]
[1768014185085,0.001,3086.0,3085.9,0.002]
[1768014187891,0.95784729,3086.0,3085.9,0.002]
[1768014191791,0.001,3086.0,3085.9,0.002]
[1768014242642,0.001,3086.0,3085.7,0.86777754]
[1768014247066,0.001,3086.0,3085.8,0.93752398]
[1768014247216,0.001,3086.3,3085.9,0.96992943]
[1768014249848,0.98435236,3086.3,3085.9,0.03240545]
[1768014250036,0.98435236,3086.3,3085.8,0.0324065]
[1768014254749,0.001,3086.3,3086.0,0.002]
[1768014255143,0.001,3086.3,3086.0,0.0344044]
[1768014255452,0.001,3086.3,3086.0,0.002]
[1768014255754,0.001,3086.3,3086.0,0.0344044]
[1768014255955,0.001,3086.3,3086.0,0.97192838]
[1768014257656,0.001,3086.3,3086.0,0.93952398]
[1768014258166,1.04812969,3086.0,3084.7,0.002]
[1768014258457,0.98335236,3085.5,3084.7,0.002]
[1768014258636,0.98335236,3085.3,3084.7,0.002]
[1768014259522,0.93752398,3085.2,3084.7,0.002]
[1768014261057,0.98335236,3085.1,3084.7,0.002]
[1768014261724,0.93952398,3085.0,3084.7,0.002]
[1768014262226,1.13181161,3085.0,3084.7,0.002]
[1768014264427,0.93952398,3085.0,3084.7,0.002]
[1768014268734,1.01576216,3085.3,3084.7,0.002]
[1768014268936,0.94033278,3085.2,3084.7,0.002]
[1768014270977,1.01576216,3085.3,3084.7,0.002]
[1768014274760,0.0324098,3085.3,3084.7,0.97480493]
[1768014274966,1.19252398,3085.4,3084.7,0.97480493]
[1768014275508,0.255,3085.4,3084.7,0.97480493]
[1768014276384,0.255,3085.4,3084.8,0.97280493]
[1768014278858,0.255,3085.4,3085.1,0.97280493]
[1768014279101,0.255,3085.5,3085.1,0.97280493]
[1768014280466,3.24072518,3085.8,3085.1,0.97280493]
[1768014280667,0.255,3085.7,3085.1,0.97280493]
[1768014280868,1.02629549,3085.7,3085.1,0.97280493]
[1768014283627,4.2670795,3085.7,3085.1,0.97280493]
[1768014283907,0.97668113,3085.6,3085.0,0.002]
[1768014288511,3.52819381,3085.7,3085.0,0.002]
[1768014290812,0.2874098,3085.7,3085.0,0.98081651]
[1768014292520,3.52817517,3085.7,3085.0,0.98081651]
[1768014292722,0.45048563,3085.6,3085.0,0.98081651]
[1768014300928,3.69136559,3085.6,3085.0,0.98081651]
[1768014301118,3.69136559,3085.6,3085.0,0.002]
[1768014301315,1.03000768,3085.5,3085.0,0.002]
[1768014301519,1.03000768,3085.5,3084.7,0.002]
[1768014301733,0.99759788,3085.3,3084.7,0.002]
[1768014302031,0.255,3085.2,3084.7,0.002]
[1768014306907,0.255,3085.2,3084.7,0.97762696]
[1768014309434,1.22074194,3085.2,3084.7,0.002]
[1768014309637,0.255,3085.2,3084.7,0.97762696]
[1768014311224,6.68442532,3085.1,3084.6,0.002]
[1768014311421,6.68442532,3085.1,3084.4,0.0028088]
[1768014311422,0.96574194,3084.9,3084.4,0.0028088]
[1768014313234,4.20734794,3084.9,3084.4,0.0028088]
[1768014313532,0.96574194,3084.9,3084.4,0.0028088]
[1768014314033,0.96574194,3084.9,3084.7,0.002]
[1768014314234,0.82292653,3085.0,3084.4,0.0028088]
[1768014318638,0.84731235,3084.9,3084.4,0.0028088]
[1768014318943,0.0324098,3084.8,3084.4,0.0028088]
[1768014322821,0.0324098,3084.8,3084.4,0.97843576]
[1768014323324,0.0324098,3085.0,3084.4,0.97843576]
[1768014325944,0.0324098,3085.0,3084.7,0.002]
[1768014326110,0.32738256,3084.9,3084.4,0.97843576]
[1768014326313,3.24088875,3085.6,3084.7,0.97562696]
[1768014326536,3.27330076,3085.6,3084.7,0.75836078]
[1768014326839,0.255,3085.5,3084.7,0.75836078]
[1768014327047,0.70440427,3085.5,3084.7,0.75836078]
[1768014327408,3.94541058,3085.5,3084.7,0.75836078]
[1768014327612,0.0324098,3085.4,3084.7,0.75836078]
[1768014327813,0.99815174,3085.4,3084.7,0.75836078]
[1768014329318,4.23924452,3085.4,3084.7,0.75836078]
[1768014329551,0.49436488,3085.3,3084.7,0.75836078]
[1768014329750,0.0324098,3085.2,3084.7,0.75836078]
[1768014331319,0.99815174,3085.2,3084.5,0.97562696]
[1768014331531,0.96574194,3085.1,3084.4,0.0028088]
[1768014331719,0.0324098,3085.0,3084.4,0.97843576]
[1768014332948,0.2874098,3085.0,3084.4,0.97843576]
[1768014335033,0.255,3085.0,3084.4,0.97843576]
[1768014338317,0.255,3085.0,3084.7,0.002]
[1768014339252,0.78419608,3085.0,3084.7,0.002]
[1768014344455,0.255,3085.0,3084.7,0.002]
[1768014346351,0.2874098,3085.0,3084.7,0.002]
[1768014347064,0.255,3085.0,3084.7,0.002]
[1768014347764,0.0324098,3085.1,3084.7,0.98627921]
[1768014347963,0.98458861,3085.7,3084.7,0.98627921]
[1768014347964,0.255,3085.2,3084.7,0.98627921]
[1768014350239,0.255,3085.2,3084.9,0.97075849]
[1768014357371,3.24094146,3085.6,3084.9,0.97075849]
[1768014357672,3.24094146,3085.6,3084.4,0.03523001]
[1768014357673,0.9557009,3085.4,3084.4,0.0028088]
[1768014357860,0.9557009,3085.2,3084.4,0.0028088]
[1768014358040,0.9557009,3085.0,3084.4,0.0028088]
[1768014358242,0.9557009,3084.8,3084.4,0.0028088]
[1768014359263,0.9557009,3084.7,3084.4,0.0028088]
[1768014362341,0.76938298,3084.8,3084.4,0.0028088]
[1768014362539,1.2117009,3084.9,3084.4,0.0028088]
[1768014363873,0.256,3084.9,3084.4,0.0028088]
[1768014364075,0.256,3084.9,3084.4,0.96727769]
[1768014365473,0.001,3084.9,3084.4,0.96727769]
[1768014365673,0.255,3084.8,3084.4,0.96727769]
[1768014369481,0.96249602,3083.8,3083.1,0.002]
[1768014369778,1.21549603,3083.7,3083.1,0.002]
[1768014370157,0.96249602,3083.6,3083.0,0.002]
[1768014371678,0.96249602,3083.4,3083.0,0.002]
[1768014371881,1.38305242,3083.4,3083.0,0.002]
[1768014372054,0.4205564,3083.4,3083.0,0.002]
[1768014372255,0.4205564,3083.4,3082.5,3.24490641]
[1768014372256,3.44385498,3083.2,3082.5,0.00080704]
[1768014372497,0.96330306,3082.9,3082.0,0.96446889]
[1768014372699,1.21749602,3082.8,3082.0,0.96446889]
[1768014373749,1.21749602,3082.8,3082.1,0.96446889]
[1768014374148,1.21749602,3082.8,3082.2,0.002]
[1768014377677,1.66368733,3082.8,3082.2,0.002]
[1768014377872,1.21749602,3082.8,3082.2,0.002]
[1768014378593,1.21549603,3082.8,3082.2,0.002]
[1768014378784,0.96249602,3082.7,3082.2,0.002]
[1768014385008,0.0324098,3082.6,3082.2,0.002]
[1768014385184,0.03040981,3082.6,3082.2,0.002]
[1768014386008,0.03040981,3082.6,3082.5,0.002]
[1768014387174,0.28340982,3082.8,3082.5,0.002]
[1768014387479,0.255,3082.7,3082.5,0.96646889]
[1768014387885,0.255,3082.7,3082.5,0.002]
[1768014396918,0.69955146,3082.7,3082.5,0.002]
[1768014397912,0.255,3082.7,3082.5,0.002]
[1768014405003,0.03040981,3082.6,3082.5,0.002]
[1768014405317,0.02840982,3082.6,3082.5,0.002]
[1768014405905,0.02840982,3082.6,3082.2,0.002]
[1768014409825,0.02840982,3082.6,3082.5,0.002]
[1768014409997,0.47269304,3082.6,3082.2,0.002]
[1768014411727,0.47069305,3082.6,3082.2,0.002]
[1768014413297,0.44428322,3082.6,3082.2,0.002]
[1768014413896,0.02640983,3082.5,3082.2,0.002]
[1768014414317,0.99255509,3082.4,3082.2,0.002]
[1768014414629,1.43948529,3082.4,3082.1,0.002]
[1768014415411,0.99255509,3082.4,3082.1,0.002]
[1768014415612,4.70727779,3082.6,3082.1,0.002]
[1768014416226,0.99255509,3082.4,3081.3,0.97168309]
[1768014416425,0.99255509,3082.1,3081.3,0.00080712]
[1768014416728,0.255,3082.1,3081.3,0.97168309]
[1768014418908,3.49955658,3082.1,3081.3,0.97168309]
[1768014420239,6.74411316,3082.1,3081.3,0.97168309]
[1768014420406,1.11857377,3082.0,3081.3,0.97168309]
[1768014421334,3.24475161,3081.9,3081.3,0.97168309]
[1768014421526,3.24475161,3081.9,3081.6,0.002]
[1768014423544,6.69382109,3081.9,3081.3,0.97368309]
[1768014423741,1.20160357,3081.8,3081.3,0.97368309]
[1768014424246,3.24475161,3081.9,3081.3,0.97368309]
[1768014424950,3.27116144,3081.9,3081.3,0.97368309]
[1768014425151,0.95897712,3081.6,3081.0,0.00083908]
[1768014425369,0.95897712,3081.6,3080.0,0.002]
[1768014425370,4.4080466,3080.7,3080.0,0.002]
[1768014425513,4.4080466,3080.7,3079.2,0.00081733]
[1768014425514,3.44987556,3080.2,3079.4,0.97368749]
[1768014425713,0.255,3080.1,3079.4,0.97368749]
[1768014425938,0.9597832,3080.2,3079.3,10.91771787]
[1768014426140,0.255,3080.1,3079.4,0.97368749]
[1768014426345,0.9597832,3080.2,3079.5,1.00616029]
[1768014426346,0.00080608,3080.2,3079.5,1.00616029]
[1768014427552,0.00080608,3080.2,3079.6,3.24717495]
[1768014427841,0.00080608,3080.2,3079.7,0.97368749]
[1768014428241,0.0008056,3080.8,3080.2,0.97368749]
[1768014428447,0.255,3080.5,3080.2,0.97368749]
[1768014428818,0.0008056,3080.8,3080.2,0.97368749]
[1768014429020,0.2558056,3080.8,3080.2,0.97368749]
[1768014430360,0.70185392,3080.8,3080.2,0.97368749]
[1768014430533,0.70185392,3080.8,3079.8,3.24775613]
[1768014430534,4.90681084,3080.8,3080.0,0.97368749]
[1768014430726,4.46076252,3080.8,3080.0,0.97368749]
[1768014430929,0.255,3080.7,3080.0,0.97368749]
[1768014431337,0.95897712,3080.6,3079.8,0.97449365]
[1768014431565,1.40505337,3080.6,3079.8,0.97449365]
[1768014431858,1.40505337,3080.6,3079.8,4.22145448]
[1768014432066,0.44607625,3080.6,3079.9,0.97368749]
[1768014432261,0.255,3080.7,3079.9,0.97368749]
[1768014432441,0.255,3080.6,3079.9,0.97368749]
[1768014433648,0.95897712,3080.5,3079.8,0.00080616]
[1768014433848,0.95997712,3080.5,3079.8,0.00080616]
[1768014435250,1.21497712,3080.5,3079.8,0.00080616]
[1768014435944,1.21497712,3080.5,3079.8,0.97449365]
[1768014436146,0.001,3080.5,3080.0,3.44906948]
[1768014436454,0.001,3080.5,3079.7,0.002]
[1768014436455,0.95897712,3080.4,3079.7,0.002]
[1768014436652,0.95897712,3080.1,3079.3,3.24748373]
[1768014436970,0.95897712,3079.9,3079.3,3.24748373]
[1768014437664,0.255,3080.0,3079.3,3.24748373]
[1768014437870,1.21397712,3080.0,3079.3,3.24748373]
[1768014439146,0.95897712,3079.9,3079.2,0.00081733]
[1768014439465,0.95978328,3080.2,3079.4,0.97568749]
[1768014439671,0.255,3079.9,3079.4,0.97568749]
[1768014439966,0.00080616,3080.2,3079.4,0.97568749]
[1768014440165,0.255,3080.1,3079.4,0.97568749]
[1768014440372,0.255,3080.0,3079.5,0.97368749]
[1768014440776,0.255,3080.0,3079.5,4.22086758]
[1768014441361,0.00080616,3080.2,3079.5,4.22086758]
[1768014441670,0.25580616,3080.2,3079.5,9.97600277]
[1768014441971,0.25580616,3080.2,3079.5,9.94352997]
[1768014442176,0.25580616,3080.2,3079.5,6.69624957]
[1768014442961,0.001,3080.5,3079.9,0.97368749]
[1768014443181,0.001,3080.5,3080.2,0.0613389]
[1768014443182,0.255,3080.4,3080.2,0.0613389]
[1768014443473,1.21397712,3080.4,3080.2,0.0613389]
[1768014443874,0.95897712,3080.3,3080.2,0.0613389]
[1768014444047,0.255,3080.4,3080.2,0.0613389]
[1768014444246,1.21397712,3080.4,3080.2,0.0613389]
[1768014444876,0.95897712,3080.4,3080.2,0.0613389]
[1768014447176,0.001,3080.5,3080.2,0.0613389]
[1768014447376,0.0008056,3080.8,3080.2,4.28156632]
[1768014447560,0.255,3080.7,3080.3,0.97368749]
[1768014448676,0.0008056,3080.8,3080.3,0.97368749]
[1768014448852,0.02640983,3081.2,3080.6,0.97368749]
[1768014449052,0.02724891,3081.4,3080.6,0.97368749]
[1768014449252,0.255,3081.3,3080.6,0.97368749]
[1768014449447,0.255,3081.3,3080.7,0.97368749]
[1768014449448,0.02640983,3081.2,3080.7,0.97368749]
[1768014450178,0.255,3081.1,3080.7,0.97368749]
[1768014454204,0.255,3081.2,3080.8,0.98216322]
[1768014454495,0.02724891,3081.4,3080.8,0.98216322]
[1768014454783,0.255,3081.3,3080.8,0.98216322]
[1768014455156,0.255,3081.3,3080.9,0.98216322]
[1768014456606,0.00083908,3081.4,3080.9,0.98216322]
[1768014456898,0.00083908,3081.4,3081.1,0.98216322]
[1768014458404,0.90226609,3081.4,3080.4,0.9829689]
[1768014458607,0.001,3081.0,3080.5,3.24616586]
[1768014459395,0.001,3081.0,3080.5,4.22832908]
[1768014463406,0.001,3081.0,3080.6,0.98216322]
[1768014468196,0.001,3081.0,3080.4,4.22927799]
[1768014469410,0.001,3081.0,3080.4,0.9829689]
[1768014469804,0.02740983,3081.0,3080.4,0.9829689]
[1768014470916,0.001,3081.0,3080.5,0.96013685]
[1768014471205,0.02740983,3081.0,3080.5,0.96013685]
[1768014473207,0.02740983,3081.0,3080.5,4.20635667]
[1768014474281,0.95796123,3080.9,3080.4,0.00080568]
[1768014474614,0.02740983,3081.0,3080.4,0.00080568]
[1768014474615,0.001,3081.0,3080.4,0.00080568]
[1768014474800,0.001,3081.0,3080.4,0.96094253]
[1768014475004,0.001,3081.0,3080.5,0.96013685]
[1768014476808,0.001,3081.0,3080.4,0.96094253]
[1768014477410,0.001,3081.0,3080.5,0.96013685]
[1768014478115,0.001,3081.0,3080.6,0.96013685]
[1768014478291,0.001,3081.0,3080.7,0.992597]
[1768014479219,0.001,3081.0,3080.8,0.96013685]
[1768014479514,0.00083908,3081.4,3080.7,3.24601302]
[1768014479515,0.95880031,3081.4,3080.7,3.24601302]
[1768014479704,0.25583908,3081.4,3080.8,1.28798417]
[1768014480215,1.21380031,3081.4,3080.8,0.32784732]
[1768014480514,1.21380031,3081.4,3080.8,3.57367151]
[1768014480815,0.95796123,3081.6,3081.0,0.00083991]
[1768014481311,0.95796123,3081.6,3081.4,0.09474429]
[1768014481920,0.98437106,3081.5,3081.0,0.00083991]
[1768014482118,0.95796123,3081.3,3080.7,0.002]
[1768014482417,0.95796123,3081.1,3080.7,0.002]
[1768014482617,0.95796123,3080.9,3080.7,0.002]
[1768014483000,0.28140983,3081.2,3080.7,0.002]
[1768014483202,1.18352001,3081.2,3080.7,0.002]
[1768014484524,0.4428911,3081.1,3080.7,0.002]
[1768014484718,0.02640983,3081.0,3080.7,0.002]
[1768014484914,0.02640983,3081.1,3080.7,0.002]
[1768014492634,0.28140983,3081.2,3080.7,0.002]
[1768014493634,0.28140983,3081.2,3081.0,0.002]
[1768014494004,0.255,3081.2,3081.0,0.002]
[1768014496432,0.00083991,3081.4,3081.0,0.002]
[1768014496627,0.255,3081.3,3081.0,0.002]
[1768014497015,0.41829733,3081.4,3081.0,0.002]
[1768014497216,0.00083991,3081.4,3081.0,0.91086149]
[1768014497416,0.00083991,3081.4,3081.1,0.90886149]